bitfinex-derivatives/quotes_ETHF0:USTF0_20250518
["timestamp","ask_amount","ask_price","bid_price","bid_amount"]
[1747526654516,2.16454,2479.9,2479.8,16.621]
[1747526656323,2.16454,2479.9,2479.8,7.968]
[1747526657125,5.22254,2479.9,2479.8,7.968]
[1747526658320,0.80617,2479.8,2479.7,3.2078]
[1747526658525,2.79187,2479.8,2479.7,3.2078]
[1747526659124,5.84987,2479.8,2479.7,3.2078]
[1747526659820,10.84987,2479.8,2479.7,3.2078]
[1747526660820,10.84987,2479.8,2479.3,8.77433]
[1747526660821,0.80634,2479.3,2479.2,3.2078]
[1747526661230,3.86434,2479.3,2479.2,3.2078]
[1747526661722,5.14934,2479.3,2479.2,3.2078]
[1747526662126,0.8064,2479.1,2479.0,0.6703]
[1747526662325,0.80643,2479.0,2478.9,1.19734767]
[1747526663026,0.80646,2478.9,2478.8,12.4252]
[1747526663221,2.16436,2478.9,2478.8,12.4252]
[1747526663425,1.3579,2478.9,2478.8,17.54963608]
[1747526663626,2.16436,2478.9,2478.8,17.54963608]
[1747526663829,2.16436,2478.9,2478.8,16.74313608]
[1747526664126,2.16436,2478.9,2478.8,8.77413608]
[1747526664323,2.16436,2478.9,2478.8,11.1768]
[1747526665134,5.22236,2478.9,2478.8,3.2078]
[1747526667534,5.22236,2478.9,2478.6,7.97]
[1747526667535,0.80653,2478.7,2478.6,7.97]
[1747526667835,0.80653,2478.7,2478.6,12.30582091]
[1747526669032,0.80653,2478.7,2478.6,13.61552091]
[1747526669232,0.80653,2478.7,2478.6,12.30582091]
[1747526669436,0.80653,2478.7,2478.6,4.33582091]
[1747526669632,0.8066,2478.5,2478.4,3.2078]
[1747526671337,0.80658,2478.6,2478.5,0.80659]
[1747526671637,0.8066,2478.5,2478.4,7.88939013]
[1747526672134,0.8066,2478.5,2478.4,4.68159013]
[1747526672543,0.80666,2478.3,2478.2,17.5517]
[1747526672828,0.80666,2478.3,2478.2,22.14916918]
[1747526673228,2.09266,2478.3,2478.2,22.14916918]
[1747526674435,2.09266,2478.3,2478.2,20.55546918]
[1747526674638,0.6277,2478.8,2478.3,0.80663]
[1747526674839,1.3274,2478.6,2478.3,0.80666]
[1747526675037,0.80663,2478.4,2478.3,0.80666]
[1747526675238,0.80661,2478.5,2478.4,5.11272097]
[1747526675439,0.8066,2478.5,2478.4,8.32052097]
[1747526675732,0.09218003,2479.0,2478.7,0.80653]
[1747526675926,1.3274,2478.9,2478.4,7.51390097]
[1747526676134,1.3274,2478.9,2478.8,5.28107026]
[1747526676341,3.15018003,2479.0,2478.9,0.80647]
[1747526676636,3.058,2479.0,2478.9,5.62831874]
[1747526677239,1.3274,2479.2,2478.9,4.82184874]
[1747526677435,3.19472203,2479.3,2479.0,3.2078]
[1747526677738,0.8064,2479.1,2479.0,3.2078]
[1747526677938,0.8064,2479.1,2479.0,4.8008]
[1747526678138,0.8064,2479.1,2479.0,9.27610356]
[1747526678738,0.8064,2479.1,2479.0,10.08253356]
[1747526678937,0.80639,2479.2,2479.0,10.08253356]
[1747526679236,0.8064,2479.1,2479.0,10.08253356]
[1747526679437,2.13376,2479.3,2479.1,0.80637]
[1747526679640,0.8064,2479.1,2479.0,9.27610356]
[1747526679944,0.8064,2479.1,2479.0,14.04930356]
[1747526681451,1.49358,2479.5,2479.3,0.80632]
[1747526681646,2.18777,2479.6,2479.3,4.01412]
[1747526681841,1.3815,2479.6,2479.4,5.03881614]
[1747526682054,2.18774,2479.6,2479.4,5.84510614]
[1747526682250,1.3815,2479.6,2479.4,5.68741614]
[1747526682450,1.43829,2479.8,2479.4,13.66841614]
[1747526682753,0.80621,2479.7,2479.4,13.66841614]
[1747526683052,0.80621,2479.7,2479.5,0.80626]
[1747526683249,1.43829,2479.8,2479.6,0.80624]
[1747526683448,1.43829,2479.8,2479.6,5.29390007]
[1747526683650,0.80621,2479.7,2479.6,4.48768007]
[1747526684048,0.80626,2479.6,2479.5,4.48768007]
[1747526684249,0.80626,2479.6,2479.4,18.09649]
[1747526684650,0.80626,2479.6,2479.5,4.4607615]
[1747526685152,2.16923,2479.7,2479.5,5.2670315]
[1747526685557,0.80624,2479.6,2479.5,4.4607615]
[1747526686361,2.16923,2479.7,2479.5,5.2670315]
[1747526686761,2.16923,2479.7,2479.5,4.4607615]
[1747526687465,0.80624,2479.6,2479.5,4.4607615]
[1747526687960,1.363,2479.7,2479.6,0.80624]
[1747526688262,1.363,2479.7,2479.6,5.35528409]
[1747526688958,0.6321,2479.8,2479.7,0.80621]
[1747526689558,1.43828,2479.8,2479.7,0.80621]
[1747526689759,1.2784,2480.0,2479.7,5.25073876]
[1747526689960,0.80616,2479.9,2479.7,5.25073876]
[1747526690155,3.058,2479.9,2479.7,5.25073876]
[1747526690355,0.80618,2479.8,2479.7,4.44452876]
[1747526690555,2.10358,2479.8,2479.7,4.44452876]
[1747526690761,0.09218003,2479.7,2479.6,13.29269567]
[1747526690962,0.09218003,2479.7,2479.6,8.77622]
[1747526691163,1.38958003,2479.7,2479.6,8.77622]
[1747526691463,1.38958003,2479.7,2479.6,13.44080691]
[1747526691658,0.09218003,2479.7,2479.6,13.44080691]
[1747526691865,0.09218003,2479.7,2479.6,16.64860691]
[1747526697357,0.09218003,2479.7,2479.6,16.63802882]
[1747526698064,0.09218003,2479.7,2479.6,13.43022882]
[1747526698267,0.09218003,2479.7,2479.6,16.63802882]
[1747526698971,0.09218003,2479.7,2479.6,21.63802882]
[1747526699361,0.09218003,2479.7,2479.6,16.63802882]
[1747526703063,0.09218003,2479.7,2479.6,24.58960691]
[1747526703670,0.75078003,2479.7,2479.6,21.38380691]
[1747526703871,0.80624,2479.6,2479.5,1.5896]
[1747526704264,2.13114,2479.6,2479.5,1.5896]
[1747526704664,2.13114,2479.6,2479.5,2.39587]
[1747526705871,2.13114,2479.6,2479.5,1.5896]
[1747526706862,10.33894,2479.6,2479.5,1.5896]
[1747526707264,10.33894,2479.6,2479.0,7.978]
[1747526707265,0.8064,2479.1,2479.0,7.978]
[1747526707571,0.8064,2479.1,2479.0,12.36192265]
[1747526709269,0.8064,2479.1,2479.0,4.38392265]
[1747526709666,0.80644,2479.0,2478.9,0.9204]
[1747526709972,2.16584,2479.0,2478.9,0.9204]
[1747526710269,5.22384,2479.0,2478.9,0.9204]
[1747526712671,5.22384,2479.0,2478.9,5.54599111]
[1747526713672,10.22384,2479.0,2478.9,0.9204]
[1747526713869,13.43164,2479.0,2478.9,0.9204]
[1747526716375,8.43164,2479.0,2478.9,0.9204]
[1747526717071,21.38064,2479.0,2478.9,0.9204]
[1747526718870,13.43164,2479.0,2478.9,0.9204]
[1747526719070,8.43164,2479.0,2478.9,0.9204]
[1747526723576,13.43164,2479.0,2478.9,0.9204]
[1747526723779,0.80647,2478.9,2478.8,1.9463]
[1747526724071,18.66317,2478.9,2478.8,1.9463]
[1747526724472,23.66317,2478.9,2478.8,1.9463]
[1747526725279,26.72117,2478.9,2478.8,1.9463]
[1747526727381,0.8067,2478.2,2478.1,0.80671]
[1747526727788,0.8067,2478.2,2478.1,4.38225268]
[1747526727980,0.8067,2478.2,2478.1,5.18898268]
[1747526728288,0.80669,2478.3,2478.2,0.8067]
[1747526728574,1.3543,2478.5,2478.4,0.80664]
[1747526729290,1.3543,2478.5,2478.4,7.31469751]
[1747526729481,2.1609,2478.5,2478.4,6.50805751]
[1747526730083,2.1609,2478.5,2478.4,7.31469751]
[1747526730273,0.8066,2478.5,2478.4,7.31469751]
[1747526730583,0.80659,2478.6,2478.5,0.8066]
[1747526730774,0.80659,2478.6,2478.5,1.9222]
[1747526731080,0.80659,2478.6,2478.5,6.42902387]
[1747526731476,0.80659,2478.6,2478.5,7.23562387]
[1747526732379,3.2078,2479.1,2478.5,19.38102387]
[1747526732579,2.14226,2479.3,2479.1,0.80641]
[1747526732787,0.67105525,2479.2,2479.1,0.80641]
[1747526732991,0.67105525,2479.2,2479.1,5.17018566]
[1747526733473,1.47742525,2479.2,2479.1,4.36377566]
[1747526734085,0.67105525,2479.2,2479.1,5.17018566]
[1747526734381,0.76323528,2479.2,2479.1,5.17018566]
[1747526735585,3.19472203,2479.3,2479.2,0.80637]
[1747526735788,3.19472203,2479.3,2479.2,5.40047]
[1747526736080,3.19472203,2479.3,2479.2,15.01913146]
[1747526738588,0.80618,2479.9,2479.8,0.80618]
[1747526739683,0.80618,2479.9,2479.8,1.3808]
[1747526740085,0.80618,2479.9,2479.8,2.18698]
[1747526740384,0.80618,2479.9,2479.8,1.3808]
[1747526741187,3.86418,2479.9,2479.8,1.3808]
[1747526741581,3.058,2479.9,2479.6,3.2078]
[1747526741783,0.80621,2479.7,2479.6,3.2078]
[1747526742181,5.24151,2479.7,2479.6,3.2078]
[1747526743682,0.80634,2479.4,2479.2,10.09866]
[1747526743888,1.3773,2479.3,2479.2,10.09866]
[1747526744084,2.18364,2479.3,2479.2,9.2923]
[1747526744387,2.18364,2479.3,2479.2,12.27910601]
[1747526744889,2.18364,2479.3,2479.2,13.08547601]
[1747526745276,2.18364,2479.3,2479.2,14.41957601]
[1747526745482,2.18364,2479.3,2479.2,6.46457601]
[1747526746189,2.18364,2479.3,2479.2,5.65820601]
[1747526746884,2.01597,2479.2,2478.4,3.2078]
[1747526747084,0.80655,2478.7,2478.6,0.80657]
[1747526747289,0.80655,2478.7,2478.6,5.152073]
[1747526747478,0.80655,2478.7,2478.6,0.80657]
[1747526747683,0.80653,2478.8,2478.6,0.80657]
[1747526747885,1.2969,2478.7,2478.6,5.39709743]
[1747526748486,4.01423,2479.1,2479.0,0.80644]
[1747526748689,5.31113,2479.1,2479.0,0.80644]
[1747526749193,0.80645,2479.0,2478.9,0.80645]
[1747526749490,0.80648,2478.9,2478.8,5.24073475]
[1747526749790,0.80647,2478.9,2478.8,5.24073475]
[1747526750692,1.2969,2479.0,2478.9,0.80647]
[1747526750991,4.01423,2479.1,2479.0,0.80644]
[1747526751193,3.2078,2479.1,2479.0,1.47704]
[1747526751393,1.45219,2479.2,2479.1,0.80641]
[1747526751794,1.3491,2479.3,2479.2,0.80637]
[1747526751795,2.15546,2479.3,2479.2,0.80637]
[1747526751992,2.15546,2479.3,2479.2,1.3727]
[1747526752188,0.80637,2479.2,2479.1,4.44957363]
[1747526752387,2.15547,2479.2,2479.0,2.84971]
[1747526752692,2.15547,2479.2,2479.1,5.07335838]
[1747526753294,1.3491,2479.2,2479.1,5.07335838]
[1747526753489,1.3491,2479.2,2479.1,8.28115838]
[1747526754891,1.2725,2479.4,2479.3,0.80634]
[1747526755193,1.2725,2479.4,2479.3,5.4675788]
[1747526755594,2.07881,2479.4,2479.3,6.7377788]
[1747526756691,1.00219936,2479.7,2479.3,5.9314388]
[1747526756891,0.80628,2479.5,2479.4,0.80629]
[1747526757092,2.09836,2479.6,2479.5,0.80628]
[1747526757298,0.80626,2479.6,2479.5,5.03954031]
[1747526757593,0.80626,2479.6,2479.5,4.23326031]
[1747526758599,0.80626,2479.6,2479.5,6.17596031]
[1747526760395,0.80626,2479.6,2479.5,1.9427]
[1747526760695,3.11372936,2479.7,2479.6,0.80624]
[1747526760993,1.65269936,2479.7,2479.6,5.13436854]
[1747526761197,1.00219936,2479.7,2479.6,15.05166854]
[1747526761898,1.48974,2480.0,2479.8,0.80615]
[1747526762094,0.80615,2479.9,2479.8,7.949]
[1747526762498,1.00219936,2480.2,2479.8,19.50244509]
[1747526762693,1.00219936,2480.2,2480.1,4.01388]
[1747526762897,1.00219936,2480.2,2480.1,11.95988]
[1747526763091,1.00219936,2480.2,2480.1,16.24105309]
[1747526764604,1.09437939,2480.2,2480.1,16.24105309]
[1747526767199,1.09437939,2480.2,2480.1,7.48897309]
[1747526767401,1.90042939,2480.2,2480.1,4.28117309]
[1747526767601,1.90042939,2480.2,2480.1,5.08725309]
[1747526767602,1.09437939,2480.2,2480.1,5.08725309]
[1747526767997,1.09437939,2480.2,2480.1,0.80608]
[1747526768195,0.09218003,2480.2,2480.1,0.80608]
[1747526768406,0.09218003,2480.2,2480.1,5.01025569]
[1747526768806,0.89823003,2480.2,2480.1,4.20417569]
[1747526769107,0.89823003,2480.2,2480.1,20.09117569]
[1747526769311,0.09218003,2480.2,2480.1,20.09117569]
[1747526769605,0.89823003,2480.2,2480.1,16.69308]
[1747526769806,0.09218003,2480.2,2480.1,21.17664718]
[1747526770607,0.09218003,2480.2,2480.1,23.20234718]
[1747526771712,1.34578003,2480.2,2480.1,23.20234718]
[1747526773105,0.09218003,2480.2,2480.1,23.20234718]
[1747526773409,0.09218003,2480.2,2480.1,28.85394718]
[1747526773611,0.6817,2480.7,2480.6,0.80592]
[1747526773807,3.2078,2480.8,2480.7,0.80589]
[1747526774211,4.5273,2480.8,2480.7,5.28945718]
[1747526776013,1.3254,2481.1,2481.0,0.80579]
[1747526776314,1.3254,2481.1,2480.8,1.2513]
[1747526776706,2.13117,2481.1,2481.0,0.80579]
[1747526777413,2.13117,2481.1,2480.9,20.51630869]
[1747526777414,2.6701,2481.1,2480.9,20.51630869]
[1747526777603,2.6701,2481.1,2481.0,5.21499884]
[1747526777808,2.6701,2481.1,2481.0,0.80579]
[1747526778114,3.47586,2481.1,2481.0,5.21499884]
[1747526778413,2.6701,2481.1,2481.0,5.21499884]
[1747526778608,13.03643907,2481.7,2481.6,0.80559]
[1747526778808,0.8056,2481.6,2481.5,0.80562]
[1747526779011,2.0575,2481.6,2481.5,0.80562]
[1747526779317,5.1155,2481.6,2481.5,0.80562]
[1747526779516,5.1155,2481.6,2481.4,8.73464]
[1747526779716,0.80563,2481.5,2481.4,8.73464]
[1747526779916,2.68833,2481.5,2481.4,8.73464]
[1747526780109,2.68833,2481.5,2481.4,13.19002094]
[1747526780418,2.68833,2481.5,2481.4,12.38438094]
[1747526781417,2.68833,2481.5,2481.4,13.19004094]
[1747526783211,1.8827,2481.5,2481.4,13.19004094]
[1747526783620,2.68833,2481.5,2481.4,13.19004094]
[1747526784517,1.8827,2481.5,2481.4,13.19004094]
[1747526784925,2.01338,2482.4,2481.5,2.01408]
[1747526785124,1.2515,2481.9,2481.8,0.80553]
[1747526785425,1.2515,2481.9,2481.8,5.1269909]
[1747526786110,3.2078,2482.4,2481.8,15.4562609]
[1747526786316,0.8054,2482.3,2482.1,4.01322]
[1747526786525,1.2515,2482.3,2482.2,0.8054]
[1747526786726,1.2515,2482.3,2482.2,5.3017861]
[1747526787118,1.2515,2482.3,2482.2,14.5108861]
[1747526787721,2.05687,2482.3,2482.2,13.7054861]
[1747526788223,2.05687,2482.3,2482.2,20.3563861]
[1747526789825,2.05687,2482.3,2482.2,4.4963861]
[1747526790029,2.05687,2482.3,2481.8,15.86]
[1747526790030,0.8055,2481.9,2481.8,15.86]
[1747526790334,0.8055,2481.9,2481.8,20.19182133]
[1747526791128,3.8635,2481.9,2481.8,12.25782133]
[1747526791332,0.80566,2481.4,2481.3,1.1159935]
[1747526791523,0.80566,2481.4,2481.3,17.7896835]
[1747526791723,0.80566,2481.4,2481.3,22.16700822]
[1747526792128,0.80566,2481.4,2481.3,4.37732472]
[1747526792333,5.0,2481.4,2481.0,1.19734767]
[1747526792635,0.80576,2481.1,2481.0,1.19734767]
[1747526793131,0.80576,2481.1,2481.0,5.60874265]
[1747526793528,0.80576,2481.1,2481.0,1.19734767]
[1747526793829,4.01356,2481.1,2481.0,1.19734767]
[1747526794037,0.80579,2481.0,2480.9,1.60302888]
[1747526794834,8.28026,2481.1,2480.4,0.80597]
[1747526795035,0.80595,2480.5,2480.4,15.924]
[1747526795227,3.86395,2480.5,2480.4,15.924]
[1747526795428,3.86395,2480.5,2480.4,20.21777491]
[1747526795630,3.86395,2480.5,2480.4,12.21877491]
[1747526795938,0.80598,2480.4,2480.3,11.2028]
[1747526796128,3.86398,2480.4,2480.3,11.2028]
[1747526796328,3.86398,2480.4,2480.3,3.2078]
[1747526796538,0.80605,2480.2,2480.1,7.925]
[1747526796728,0.80616,2479.9,2479.8,7.925]
[1747526796935,0.80616,2479.9,2479.8,15.935]
[1747526797136,0.80616,2479.9,2479.8,20.1965287]
[1747526797536,0.80616,2479.9,2479.8,4.2615287]
[1747526798237,3.86416,2479.9,2479.8,4.2615287]
[1747526798537,3.058,2479.9,2479.8,4.2615287]
[1747526798837,3.86415,2479.9,2479.8,4.2615287]
[1747526799042,5.15545,2479.9,2479.8,4.2615287]
[1747526799341,2.09745,2479.9,2479.8,4.2615287]
[1747526801143,2.09745,2479.9,2479.8,5.0677087]
[1747526801331,2.09745,2479.9,2479.8,4.2615287]
[1747526802134,5.15545,2479.9,2479.8,4.2615287]
[1747526802547,4.3493,2479.9,2479.8,5.0677087]
[1747526802743,4.3493,2479.9,2479.8,6.3824087]
[1747526803244,1.2913,2479.9,2479.8,6.3824087]
[1747526803443,2.09745,2479.9,2479.8,5.5762287]
[1747526804145,2.09745,2479.9,2479.8,6.3824087]
[1747526804440,3.2078,2480.1,2480.0,0.80611]
[1747526804643,0.80602,2480.3,2480.1,0.80606]
[1747526804843,24.42407203,2481.0,2480.1,0.80606]
[1747526804844,1.3668,2480.5,2480.4,0.80598]
[1747526805044,0.80584,2480.9,2480.7,0.80586]
[1747526805244,1.3668,2480.9,2480.8,0.80585]
[1747526805539,2.17262,2480.9,2480.8,5.3936142]
[1747526806051,4.20999936,2481.3,2480.8,12.6127642]
[1747526806347,0.80581,2481.0,2480.9,8.009]
[1747526806748,0.80581,2481.0,2480.9,12.64056461]
[1747526807145,0.80581,2481.0,2480.9,4.63156461]
[1747526807348,0.80581,2481.0,2480.9,20.67456461]
[1747526807649,0.80581,2481.0,2480.9,16.043]
[1747526807851,0.80581,2481.0,2480.9,20.66541319]
[1747526808151,3.058,2481.0,2480.9,21.47123319]
[1747526809046,3.058,2481.0,2480.9,22.82303319]
[1747526809242,0.80578,2481.1,2480.9,22.82301319]
[1747526809446,2.05368,2481.1,2480.9,22.82301319]
[1747526810153,1.2479,2481.1,2481.0,0.80579]
[1747526810351,1.00219936,2481.2,2481.1,0.80576]
[1747526810749,1.80791936,2481.2,2481.1,5.08213761]
[1747526811150,1.80791936,2481.2,2481.1,4.27637761]
[1747526811454,3.14721936,2481.2,2481.1,1.9388]
[1747526811653,3.14721936,2481.2,2481.1,2.74456]
[1747526811954,2.34149936,2481.2,2481.1,7.04080779]
[1747526812156,2.34149936,2481.2,2481.1,15.04780779]
[1747526812655,1.3393,2481.2,2481.1,16.33770779]
[1747526812852,3.2078,2481.6,2481.5,0.80563]
[1747526813149,3.2078,2481.6,2481.5,13.04325845]
[1747526813350,1.00219936,2482.2,2481.7,2.01384]
[1747526813556,1.80760936,2482.2,2482.1,0.80543]
[1747526814051,1.00219936,2482.2,2482.1,8.49360243]
[1747526815349,1.80759936,2482.2,2482.1,7.68817243]
[1747526815554,3.16399936,2482.2,2482.1,3.2078]
[1747526815955,8.16399936,2482.2,2482.1,3.2078]
[1747526816153,11.22199936,2482.2,2482.1,3.2078]
[1747526816659,6.22199936,2482.2,2482.1,3.2078]
[1747526816954,11.22199936,2482.2,2482.1,3.2078]
[1747526818151,19.22699936,2482.2,2482.1,3.2078]
[1747526818347,27.30799936,2482.2,2482.1,3.2078]
[1747526818552,11.22199936,2482.2,2482.1,3.2078]
[1747526818959,6.22199936,2482.2,2482.1,3.2078]
[1747526819161,12.6222,2482.2,2481.4,13.34184]
[1747526819355,0.80563,2481.5,2481.4,8.005]
[1747526819554,0.80569,2481.3,2481.2,1.3561]
[1747526819754,0.80569,2481.3,2481.2,8.005]
[1747526820261,3.86369,2481.3,2481.2,8.005]
[1747526820456,3.058,2481.3,2481.2,8.81072]
[1747526821052,3.86369,2481.3,2481.2,8.005]
[1747526821251,3.86369,2481.3,2481.2,4.51833318]
[1747526821957,3.058,2481.3,2481.2,5.32405318]
[1747526822156,4.5017,2481.6,2481.2,5.79953318]
[1747526822353,0.80569,2481.4,2481.3,1.2812]
[1747526822554,0.80569,2481.3,2481.2,4.51833318]
[1747526822856,0.80569,2481.3,2481.1,13.1516]
[1747526822857,2.09961,2481.3,2481.1,13.95734]
[1747526823154,0.80572,2481.2,2481.1,14.4328]
[1747526823356,2.09962,2481.2,2481.1,14.4328]
[1747526823555,2.09962,2481.2,2481.1,17.40580941]
[1747526823756,3.058,2481.3,2481.2,0.80572]
[1747526823956,3.058,2481.3,2481.2,2.16772]
[1747526824160,0.80569,2481.3,2481.2,6.66552063]
[1747526824362,0.80569,2481.3,2481.2,5.85980063]
[1747526824863,0.80569,2481.3,2481.2,6.66552063]
[1747526825062,0.80569,2481.3,2481.2,5.85980063]
[1747526825262,0.80569,2481.3,2481.2,6.66552063]
[1747526825459,0.80569,2481.3,2481.2,5.85980063]
[1747526825857,0.80569,2481.3,2481.2,4.49780063]
[1747526826057,0.80572,2481.2,2481.1,5.1466]
[1747526826255,2.78262,2481.2,2481.1,5.1466]
[1747526826557,1.3483,2481.2,2481.1,10.54893552]
[1747526827059,2.15402,2481.2,2481.1,9.74317552]
[1747526828164,5.21202,2481.2,2481.1,1.9388]
[1747526828362,8.41982,2481.2,2481.1,1.9388]
[1747526828568,5.21202,2481.2,2481.1,1.9388]
[1747526829958,3.058,2481.2,2481.1,7.16471882]
[1747526830159,1.272,2481.4,2481.3,0.80569]
[1747526830360,1.272,2481.4,2481.3,8.81169]
[1747526830660,1.272,2481.4,2481.3,13.23184882]
[1747526830861,0.80563,2481.5,2481.3,12.42615882]
[1747526831054,0.80563,2481.5,2481.4,1.3795]
[1747526831260,1.272,2481.6,2481.3,13.23183882]
[1747526831261,0.80566,2481.4,2481.3,13.23183882]
[1747526831463,0.80566,2481.4,2481.3,8.81168]
[1747526831664,0.80566,2481.4,2481.3,13.10021658]
[1747526832366,1.272,2481.6,2481.3,15.50233658]
[1747526832564,0.80563,2481.5,2481.4,1.3176]
[1747526832765,0.80566,2481.4,2481.3,16.30802658]
[1747526833062,0.80565,2481.5,2481.4,4.39415212]
[1747526833460,0.80566,2481.4,2481.3,11.2138]
[1747526833763,0.80566,2481.4,2481.3,16.30340063]
[1747526835163,0.80566,2481.4,2481.3,8.29740063]
[1747526835369,0.80572,2481.2,2481.1,1.9388]
[1747526835865,9.01352,2481.2,2481.1,1.9388]
[1747526836161,5.22122,2481.2,2481.1,1.9388]
[1747526837462,8.42902,2481.2,2481.1,1.9388]
[1747526839572,0.80605,2480.2,2480.1,8.127]
[1747526839871,0.80605,2480.2,2480.1,13.86053278]
[1747526840169,3.86405,2480.2,2480.1,1.11505513]
[1747526840564,12.07185,2480.2,2480.1,1.11505513]
[1747526841170,0.80615,2479.9,2479.8,1.60302888]
[1747526841368,12.17295,2479.9,2479.8,1.60302888]
[1747526841563,17.17295,2479.9,2479.8,1.60302888]
[1747526841967,17.17295,2479.9,2479.8,0.70906888]
[1747526842169,20.23095,2479.9,2479.8,0.70906888]
[1747526842369,20.23095,2479.9,2479.8,8.88e-06]
[1747526842568,7.07195,2479.9,2479.8,8.88e-06]
[1747526842868,29.06465,2479.9,2479.8,8.88e-06]
[1747526843268,24.06465,2479.9,2479.8,8.88e-06]
[1747526843571,3.86415,2479.9,2479.8,8.88e-06]
[1747526843771,3.86415,2479.9,2479.8,1.3548]
[1747526844173,2.01532,2480.0,2479.5,1.2902]
[1747526844472,0.80624,2479.6,2479.5,1.2902]
[1747526844873,0.80628,2479.5,2479.4,1.2678]
[1747526845075,0.80626,2479.6,2479.4,1.2678]
[1747526845378,0.80628,2479.5,2479.4,1.2678]
[1747526845683,1.2603,2479.5,2479.1,11.3368]
[1747526845975,0.80636,2479.3,2479.2,4.33616573]
[1747526846673,3.058,2479.4,2479.3,0.80634]
[1747526846878,3.058,2479.4,2479.3,1.34846793]
[1747526847176,2.06659,2479.5,2479.3,2.15480793]
[1747526847378,2.06659,2479.5,2479.3,1.34846793]
[1747526847573,1.2603,2479.5,2479.3,1.34846793]
[1747526847778,0.80629,2479.5,2479.4,4.23142009]
[1747526848278,0.80629,2479.5,2479.4,5.50182009]
[1747526849481,1.3791,2479.7,2479.4,5.50182009]
[1747526849980,0.80628,2479.5,2479.4,1.2704]
[1747526850177,1.3791,2479.7,2479.1,4.01419]
[1747526850178,4.4371,2479.7,2479.1,4.01419]
[1747526850480,0.80637,2479.2,2479.1,3.2078]
[1747526850681,0.80637,2479.2,2479.1,4.4782]
[1747526850878,0.80637,2479.2,2479.1,5.28461]
[1747526851079,0.80637,2479.2,2479.1,4.4782]
[1747526851380,2.18542,2479.4,2479.2,0.80635]
[1747526851879,2.18542,2479.4,2479.3,2.05824]
[1747526852079,5.24342,2479.4,2479.3,1.2519]
[1747526852280,5.24342,2479.4,2479.3,2.05824]
[1747526852482,3.058,2479.4,2479.3,6.67075681]
[1747526852668,3.86431,2479.4,2479.3,5.86441681]
[1747526852873,3.86431,2479.4,2479.3,4.61251681]
[1747526853079,0.80637,2479.2,2479.1,3.2078]
[1747526853776,1.3547,2479.3,2479.2,0.80637]
[1747526853978,2.16106,2479.3,2479.2,1.2995]
[1747526854282,5.21906,2479.3,2479.2,1.2995]
[1747526854883,0.80637,2479.2,2479.1,3.2078]
[1747526855082,2.11187,2479.2,2479.1,3.2078]
[1747526857183,2.11187,2479.2,2479.0,2.78044]
[1747526857184,0.80641,2479.1,2479.0,2.78044]
[1747526857384,0.80641,2479.1,2479.0,1.974]
[1747526857579,0.80641,2479.1,2479.0,7.10451528]
[1747526859287,2.11188,2479.2,2479.1,0.80641]
[1747526859587,3.2078,2479.4,2479.3,0.80634]
[1747526860083,0.80634,2479.3,2479.2,1.2605]
[1747526860795,0.80633,2479.4,2479.2,2.06685]
[1747526860997,0.80634,2479.3,2479.2,1.2605]
[1747526861792,1.2686,2479.5,2479.4,0.80631]
[1747526862094,0.80627,2479.6,2479.4,0.80628]
[1747526862299,0.80627,2479.6,2479.5,1.3293]
[1747526862496,0.80627,2479.6,2479.5,2.13558]
[1747526862691,4.5785,2479.7,2479.5,2.13558]
[1747526862898,3.2078,2479.7,2479.6,0.80624]
[1747526863196,3.2078,2479.7,2479.6,6.54709939]
[1747526863392,3.2078,2480.0,2479.9,0.80615]
[1747526863594,3.2078,2480.3,2480.2,0.80605]
[1747526863786,3.2078,2480.3,2480.0,4.42875939]
[1747526863992,4.51222203,2480.5,2480.2,0.80605]
[1747526864300,0.806,2480.4,2480.3,2.05942]
[1747526864996,5.31819203,2480.5,2480.3,2.05942]
[1747526865201,0.80598,2480.4,2480.3,1.2534]
[1747526865506,2.12348,2480.4,2480.3,1.2534]
[1747526866101,0.80602,2480.3,2480.2,0.6313]
[1747526866298,1.3485,2480.3,2479.8,3.8772]
[1747526866499,1.3485,2480.3,2479.8,5.2185]
[1747526866695,0.80605,2480.2,2480.0,0.80609]
[1747526867000,0.80605,2480.2,2480.1,1.3413]
[1747526867395,3.058,2480.3,2480.2,0.80605]
[1747526867894,3.86402,2480.3,2480.2,4.25125028]
[1747526868296,0.80605,2480.2,2480.1,1.3413]
[1747526868496,2.15455,2480.2,2480.1,1.3413]
[1747526869200,5.21255,2480.2,2480.1,1.3413]
[1747526869798,3.058,2480.2,2480.1,2.14738]
[1747526870301,0.806,2480.4,2480.2,0.80605]
[1747526870599,2.14617,2480.5,2480.3,6.6621129]
[1747526871205,0.80598,2480.4,2480.3,6.6621129]
[1747526871398,3.058,2480.5,2480.4,0.80598]
[1747526871596,3.058,2480.5,2480.4,5.93768]
[1747526871791,3.19472203,2481.1,2481.0,0.80579]
[1747526872298,3.19472203,2481.1,2481.0,5.15056059]
[1747526872501,3.19472203,2481.1,2481.0,6.42116059]
[1747526873000,4.00048203,2481.1,2481.0,4.34477059]
[1747526873304,3.19472203,2481.1,2480.9,0.8058]
[1747526873496,0.80579,2481.0,2480.9,1.2706]
[1747526873696,4.00050203,2481.1,2480.9,1.2706]
[1747526873897,0.80579,2481.0,2480.9,2.07641]
[1747526874203,0.80579,2481.0,2480.9,1.2706]
[1747526874401,2.06459,2481.0,2480.9,1.2706]
[1747526875404,0.80582,2480.9,2480.8,8.163]
[1747526875595,2.13742,2480.9,2480.8,8.163]
[1747526876099,0.80585,2480.8,2480.7,1.3362]
[1747526876299,0.80585,2480.8,2480.7,2.14209]
[1747526876503,0.80585,2480.8,2480.7,1.3362]
[1747526877005,2.13744,2480.9,2480.7,1.3362]
[1747526877198,2.13744,2480.9,2480.7,2.14208]
[1747526878605,2.13744,2480.9,2480.8,0.80585]
[1747526879505,2.13744,2480.9,2480.7,2.14207]